bitfinex/quotes_ETHUSD_20240902
["timestamp","ask_amount","ask_price","bid_price","bid_amount"]
[1725289440763,3.96157,2524.3,2523.8,23.76226]
[1725289440961,3.9619,2524.1,2523.8,19.8]
[1725289443567,3.96204,2524.0,2523.7,2.3222]
[1725289443802,3.9623,2523.8,2523.6,3.0]
[1725289444302,3.96212,2523.9,2523.6,3.0]
[1725289444980,3.96271,2523.6,2523.4,19.8]
[1725289445178,3.96271,2523.6,2523.3,2.2718]
[1725289445875,3.96244,2523.7,2523.3,2.2718]
[1725289447716,3.96244,2523.7,2523.1,19.8]
[1725289447942,4.358704,2523.7,2522.7,22.1893]
[1725289448148,3.96341,2523.1,2522.6,19.8]
[1725289448319,3.96341,2523.1,2522.5,11.27418]
[1725289448320,3.96341,2523.1,2522.5,23.76418]
[1725289448917,7.9269,2523.1,2522.5,23.76418]
[1725289449251,3.96315,2523.3,2522.8,3.96383]
[1725289449620,3.96315,2523.3,2522.7,3.96389]
[1725289449845,3.96315,2523.3,2522.8,0.07926976]
[1725289450062,3.96315,2523.3,2522.9,2.3893]
[1725289450564,4.358684,2523.7,2523.0,3.96344]
[1725289450729,3.96259,2523.6,2523.0,4.6066407]
[1725289450925,3.96275,2523.5,2523.0,4.6066407]
[1725289451127,7.9256,2523.5,2522.9,2.46856695]
[1725289451327,3.96275,2523.5,2523.0,3.96344]
[1725289451635,3.96275,2523.5,2523.1,3.0]
[1725289451851,3.96307,2523.3,2522.9,3.0]
[1725289453363,3.96307,2523.3,2522.9,6.26297154]
[1725289454380,3.96275,2523.5,2522.9,6.26297154]
[1725289454381,3.96275,2523.5,2522.9,10.30583754]
[1725289454530,3.96254,2523.7,2523.0,2.3893]
[1725289454732,3.96188,2524.1,2523.4,3.96278]
[1725289454955,7.92378,2524.1,2523.4,4.04202237]
[1725289455224,7.9238,2524.1,2523.4,5.28146561]
[1725289455441,3.96188,2524.1,2523.4,29.04427561]
[1725289455671,3.96156,2524.3,2523.6,3.96257]
[1725289455846,3.96156,2524.3,2523.7,0.07923989]
[1725289456045,3.96137,2524.4,2523.7,19.87923989]
[1725289456379,3.96137,2524.4,2523.8,2.46853577]
[1725289456730,7.92281,2524.4,2523.8,2.46853577]
[1725289456970,3.96137,2524.4,2523.8,9.45014735]
[1725289458143,3.96137,2524.4,2523.8,5.48788735]
[1725289458885,3.96112,2524.6,2523.9,6.96203]
[1725289459087,3.96112,2524.6,2524.0,0.07922977]
[1725289459383,7.92225,2524.6,2524.0,0.07922977]
[1725289459599,7.92223,2524.6,2524.0,0.07922977]
[1725289459746,2.445,2524.7,2524.0,4.04115977]
[1725289459747,3.96087,2524.7,2524.0,4.04115977]
[1725289459941,3.96087,2524.7,2524.0,7.36037475]
[1725289460691,3.96105,2524.6,2524.0,7.36037453]
[1725289460994,7.92218,2524.6,2524.0,3.39850453]
[1725289461284,3.96126,2524.5,2523.9,3.0]
[1725289461672,12.0508353,2525.0,2523.9,3.0]
[1725289461673,3.96081,2524.8,2523.9,3.0]
[1725289461873,6.39989,2525.0,2524.3,2.4883]
[1725289462185,3.96018,2525.2,2524.5,3.96109]
[1725289462385,8.19970563,2525.4,2524.6,4.44415138]
[1725289462603,3.96034,2525.1,2524.7,3.0]
[1725289462886,3.9604,2525.0,2524.7,3.0]
[1725289463094,3.9604,2525.0,2524.5,19.8]
[1725289463095,3.9604,2525.0,2524.6,3.0]
[1725289464005,7.9209,2525.0,2524.6,3.0]
[1725289464162,3.96096,2524.7,2524.5,19.8]
[1725289464650,3.96064,2524.9,2524.5,19.8]
[1725289464851,3.96042,2525.0,2524.5,25.0094]
[1725289465072,3.96042,2525.0,2524.5,19.8]
[1725289465266,4.23985563,2525.2,2524.5,19.8]
[1725289465267,7.92124,2524.9,2524.5,19.8]
[1725289465478,4.752774,2524.9,2524.5,19.8]
[1725289465697,3.96094,2524.7,2524.2,2.4984]
[1725289466392,3.96065,2524.9,2524.3,4.04065208]
[1725289466592,3.96017,2525.2,2524.5,3.96108]
[1725289466799,3.96067,2524.9,2524.6,3.0]
[1725289467175,7.92132,2524.9,2524.5,3.0]
[1725289469006,3.96071,2524.8,2524.5,3.0]
[1725289469573,3.96088,2524.7,2524.5,3.0]
[1725289469773,3.96072,2524.8,2524.5,3.0]
[1725289470012,7.92131,2524.9,2524.5,3.0]
[1725289470221,7.92131,2524.9,2524.5,5.28]
[1725289470403,7.92131,2524.9,2524.5,3.0]
[1725289470601,3.9609,2524.7,2524.2,5.4984]
[1725289470914,3.9609,2524.7,2524.1,19.8]
[1725289471208,3.96142,2524.4,2524.1,19.8]
[1725289471415,3.96142,2524.4,2523.9,2.3129]
[1725289471995,7.92288,2524.4,2523.9,5.3129]
[1725289472215,3.96151,2524.3,2523.9,5.3129]
[1725289472417,3.96133,2524.5,2523.9,8.220432]
[1725289473020,3.96133,2524.5,2523.9,12.182522]
[1725289473222,3.96133,2524.5,2524.0,2.73748636]
[1725289473371,3.96133,2524.5,2524.1,3.0]
[1725289474278,3.96135,2524.4,2524.1,3.0]
[1725289474474,7.92323,2524.3,2523.9,5.3129]
[1725289474686,3.96159,2524.3,2523.9,5.3129]
[1725289474916,3.96159,2524.3,2523.9,8.220425]
[1725289475124,7.92261,2524.5,2523.9,8.220425]
[1725289475480,3.96128,2524.5,2523.9,8.220425]
[1725289475680,7.92256,2524.5,2523.9,8.220425]
[1725289476102,3.96136,2524.4,2523.9,8.220425]
[1725289476415,7.92308,2524.3,2523.9,8.220425]
[1725289476617,7.92308,2524.3,2523.9,3.0]
[1725289476919,3.96149,2524.3,2523.8,3.0]
[1725289477120,3.96149,2524.3,2523.9,2.676239]
[1725289477328,0.24225,2524.8,2524.0,3.0]
[1725289477329,3.96134,2524.4,2524.0,3.0]
[1725289477543,7.92191,2524.7,2524.2,2.4684]
[1725289477709,3.96072,2524.8,2524.2,6.43004]
[1725289477896,3.96072,2524.8,2524.2,2.54762178]
[1725289478229,3.96068,2524.9,2524.3,0.07922222]
[1725289478439,3.96068,2524.9,2524.3,4.04070222]
[1725289478608,3.96051,2525.0,2524.4,3.96132]
[1725289478808,3.96051,2525.0,2524.4,5.15581737]
[1725289478995,3.96051,2525.0,2524.4,9.19635325]
[1725289479197,3.96051,2525.0,2524.4,9.19627325]
[1725289479505,3.96051,2525.0,2524.4,5.23495325]
[1725289479717,3.96051,2525.0,2524.5,2.50349533]
[1725289479890,3.96048,2525.0,2524.5,2.50349533]
[1725289480094,7.92097,2525.0,2524.5,2.50349533]
[1725289480492,3.96048,2525.0,2524.5,2.50349533]
[1725289481102,3.96063,2524.9,2524.5,2.50349533]
[1725289481309,3.96063,2524.9,2524.3,23.76148]
[1725289481625,3.96063,2524.9,2524.4,3.0792156]
[1725289482923,3.96055,2524.9,2524.4,6.40627816]
[1725289483142,3.96048,2525.0,2524.4,6.40627816]
[1725289483363,7.92102,2525.0,2524.4,6.40627816]
[1725289483642,3.96057,2524.9,2524.4,26.20627816]
[1725289483823,3.96057,2524.9,2524.4,26.12706256]
[1725289484141,3.96057,2524.9,2524.4,22.8]
[1725289484699,3.96071,2524.8,2524.4,22.8]
[1725289485647,3.96058,2524.9,2524.5,0.07921562]
[1725289485805,3.96058,2524.9,2524.5,2.76328518]
[1725289486005,3.96039,2525.1,2524.5,2.76328518]
[1725289486269,3.96043,2525.0,2524.6,2.3675]
[1725289486542,3.96039,2525.1,2524.7,0.07921554]
[1725289486703,3.95995,2525.3,2524.7,0.07921554]
[1725289487043,3.95979,2525.4,2524.9,3.96054]
[1725289487560,3.95979,2525.4,2524.8,0.07920084]
[1725289487861,3.95979,2525.4,2524.8,4.8806558]
[1725289488554,3.95995,2525.3,2524.8,4.8806558]
[1725289489547,3.95995,2525.3,2524.8,24.6806558]
[1725289490361,3.95963,2525.5,2524.8,4.8805558]
[1725289490523,3.95963,2525.5,2525.0,2.2532]
[1725289490857,3.95963,2525.5,2525.1,0.07919667]
[1725289493168,3.95988,2525.4,2525.1,0.07919667]
[1725289493472,3.96001,2525.3,2525.0,19.8]
[1725289493671,7.92003,2525.3,2525.0,19.8]
[1725289494231,7.92001,2525.3,2525.0,19.8]
[1725289494749,3.96,2525.3,2525.0,19.8]
[1725289494947,7.92001,2525.3,2525.0,22.1053065]
[1725289495370,3.9613,2524.5,2524.0,2.4123]
[1725289495575,3.96147,2524.4,2524.0,2.4123]
[1725289495883,3.96147,2524.4,2524.0,2.65353]
[1725289496258,3.96162,2524.3,2524.0,2.65353]
[1725289496579,3.96167,2524.2,2524.0,0.24123]
[1725289496756,3.96189,2524.1,2523.7,2.3515]
[1725289496952,3.96215,2523.9,2523.7,2.3515]
[1725289497151,3.96227,2523.8,2523.7,2.3515]
[1725289497378,0.22574,2524.5,2523.4,2.0]
[1725289497379,7.92529,2523.6,2523.4,2.3515]
[1725289497585,3.9626,2523.6,2523.4,2.3515]
[1725289497791,3.9626,2523.6,2523.4,2.58665]
[1725289498984,3.96275,2523.5,2523.4,2.58665]
[1725289499859,3.96275,2523.5,2523.4,5.58665]
[1725289500568,3.9626,2523.6,2523.4,5.58665]
[1725289500785,3.96275,2523.5,2523.4,5.58665]
[1725289501249,3.96275,2523.5,2523.4,3.23515]
[1725289501442,3.96275,2523.5,2523.4,0.23515]
[1725289501821,3.96275,2523.5,2523.3,19.8]
[1725289501822,7.9258,2523.4,2523.3,19.8]
[1725289502444,3.96337,2523.1,2523.0,0.3974]
[1725289502671,3.96337,2523.1,2522.9,2.2636]
[1725289502871,3.96353,2523.0,2522.9,2.2636]
[1725289503219,3.96353,2523.0,2522.7,9.7358]
[1725289503531,3.96331,2523.2,2522.7,13.08581]
[1725289503822,3.96341,2523.1,2522.8,3.0]
[1725289504108,3.96354,2523.0,2522.7,7.31]
[1725289504312,3.96371,2522.9,2522.7,7.31]
[1725289504973,3.96371,2522.9,2522.6,20.1974]
[1725289504974,3.96393,2522.8,2522.6,20.1974]
[1725289505616,3.96393,2522.8,2522.7,3.0]
[1725289508831,3.96349,2523.1,2522.7,5.28]
[1725289509157,3.96346,2523.1,2522.8,0.0792674]
[1725289509365,3.9621,2524.0,2522.8,0.0792674]
[1725289509366,3.96286,2523.5,2522.9,6.42936]
[1725289509515,3.96286,2523.5,2523.0,7.04275579]
[1725289509857,3.96254,2523.7,2523.0,8.9635]
[1725289510059,3.96254,2523.7,2523.3,2.4657]
[1725289510214,3.96254,2523.7,2523.4,0.07924854]
[1725289511359,7.92446,2523.9,2523.4,0.07924854]
[1725289511556,7.92447,2523.9,2523.4,1.12635539]
[1725289511775,3.96197,2524.0,2523.5,0.07924822]
[1725289511950,3.96174,2524.2,2523.7,3.96234]
[1725289512252,3.96157,2524.3,2523.8,6.42762392]
[1725289512410,3.96157,2524.3,2523.9,3.0]
[1725289512608,3.96151,2524.3,2523.9,3.0]
[1725289514118,3.96128,2524.5,2523.9,6.96209]
[1725289514825,3.96136,2524.4,2523.9,7.04131937]
[1725289515051,3.96069,2524.9,2524.3,3.96147]
[1725289515252,3.96081,2524.8,2524.4,3.396147]
[1725289515462,3.96081,2524.8,2524.4,3.0]
[1725289515626,3.96068,2524.9,2524.4,6.96132]
[1725289515839,3.96064,2524.9,2524.4,7.04043892]
[1725289516337,3.96044,2525.0,2524.5,3.96114]
[1725289519370,3.96044,2525.0,2524.5,23.76114]
[1725289522678,2.3301,2525.1,2524.5,19.8]
[1725289523010,7.92202,2524.7,2524.5,19.8]
[1725289523561,3.961,2524.7,2524.5,19.8]
[1725289523962,3.96066,2524.9,2524.5,19.8]
[1725289524167,3.96013,2525.2,2524.7,3.96078]
[1725289524525,3.96,2525.3,2524.8,3.07920329]
[1725289524667,3.96,2525.3,2524.8,3.0]
[1725289524869,3.96055,2524.9,2524.6,2.28]
[1725289525085,3.96136,2524.4,2524.1,3.0]
[1725289525293,3.96118,2524.5,2524.1,3.0]
[1725289526219,7.92218,2524.6,2524.1,3.0]
[1725289526390,3.96102,2524.6,2524.1,3.0]
[1725289526594,3.96102,2524.6,2524.1,6.9618]
[1725289527606,3.96102,2524.6,2524.1,10.92353]
[1725289527992,3.96102,2524.6,2524.1,6.96173]
[1725289528226,3.96067,2524.9,2524.4,3.96124]
[1725289528513,3.96067,2524.9,2524.5,2.3906]
[1725289528714,3.96024,2525.1,2524.5,6.35171]
[1725289529025,7.92059,2525.1,2524.5,7.06609917]
[1725289529177,3.96042,2525.0,2524.5,6.986881]
[1725289529790,7.92062,2525.1,2524.5,10.947921]
[1725289530027,7.92062,2525.1,2524.6,1.0947921]
[1725289530379,3.96024,2525.1,2524.6,1.0947921]
[1725289530705,3.96024,2525.1,2524.6,1.17400263]
[1725289530906,3.96024,2525.1,2524.6,5.13499263]
[1725289531204,3.96024,2525.1,2524.6,1.0947921]
[1725289531629,3.96024,2525.1,2524.7,0.80816031]
[1725289532122,7.92056,2525.1,2524.8,0.10623303]
[1725289532288,3.96024,2525.1,2524.8,0.10623303]
[1725289532617,3.96011,2525.2,2524.8,0.10623303]
[1725289532827,3.96011,2525.2,2524.8,0.71115063]
[1725289534837,3.95991,2525.4,2524.9,3.96048]
[1725289535040,3.95971,2525.5,2524.9,6.45138]
[1725289535334,3.95971,2525.5,2525.1,3.96022]
[1725289535830,3.95971,2525.5,2525.2,0.10558808]
[1725289536701,3.95999,2525.3,2524.8,4.5656076]
[1725289537031,3.96028,2525.1,2524.9,0.10558976]
[1725289537226,3.95999,2525.3,2524.9,0.10558976]
[1725289537433,3.95999,2525.3,2524.8,3.0]
[1725289537727,3.95999,2525.3,2524.9,0.10558976]
[1725289538425,2.4421,2525.3,2524.9,0.10558976]
[1725289538628,3.96039,2525.0,2524.9,0.10558976]
[1725289538931,7.92078,2525.0,2524.9,0.10558976]
[1725289539137,3.96061,2524.9,2524.7,7.31]
[1725289539287,3.9607,2524.8,2524.7,7.31]
[1725289539487,3.9607,2524.8,2524.4,3.0]
[1725289539734,3.9607,2524.8,2524.4,5.676137]
[1725289540322,3.96056,2524.9,2524.4,9.637437]
[1725289540637,3.96029,2525.1,2524.7,2.3968]
[1725289541622,7.92062,2525.1,2524.7,2.3968]
[1725289541825,3.96029,2525.1,2524.7,2.3968]
[1725289542027,3.96029,2525.1,2524.6,3.96087]
[1725289542265,3.96048,2525.0,2524.6,1.38909614]
[1725289542567,3.96048,2525.0,2524.6,8.35010614]
[1725289542948,3.96048,2525.0,2524.6,4.38909614]
[1725289543149,3.96048,2525.0,2524.6,24.18909614]
[1725289543525,3.96048,2525.0,2524.6,28.15010614]
[1725289543776,3.96048,2525.0,2524.7,3.06089061]
[1725289544663,3.96048,2525.0,2524.8,0.10523526]
[1725289545431,4.48967563,2525.7,2524.8,0.10523526]
[1725289545432,2.271,2526.1,2524.9,10.57139563]
[1725289545627,3.9586,2526.2,2525.4,2.3711]
[1725289545931,7.91724,2526.2,2525.6,3.95935]
[1725289546128,3.95867,2526.1,2525.7,0.49353632]
[1725289546439,3.9586,2526.2,2525.7,0.10505024]
[1725289546440,3.95914,2525.8,2525.7,0.10505024]
[1725289546760,7.91828,2525.8,2525.7,0.10505024]
[1725289547067,11.87742,2525.8,2525.7,0.10505024]
[1725289547273,13.297682,2525.8,2525.7,0.10505024]
[1725289547573,3.95988,2525.4,2525.0,19.8]
[1725289547809,3.9601,2525.2,2524.9,29.4646]
[1725289548072,3.95933,2525.7,2524.9,29.4646]
[1725289548073,3.96025,2525.1,2524.9,29.4646]
[1725289549232,3.96003,2525.3,2524.9,29.4646]
[1725289549428,3.96008,2525.2,2525.0,3.24646]
[1725289550481,3.96008,2525.2,2524.9,29.4646]
[1725289551239,3.9603,2525.1,2524.9,29.4646]
[1725289551436,3.9603,2525.1,2524.9,27.11]
[1725289551673,3.96039,2525.0,2524.9,27.11]
[1725289551977,3.96055,2524.9,2524.8,3.0]
[1725289552177,3.96055,2524.9,2524.6,2.3173]
[1725289553985,3.96019,2525.2,2524.5,22.8]
[1725289554150,3.9608,2524.8,2524.5,22.8]
[1725289554346,3.96061,2524.9,2524.5,3.0]
[1725289554347,3.96086,2524.7,2524.5,3.0]
[1725289555382,3.96086,2524.7,2524.5,5.92533]
[1725289555856,7.92182,2524.7,2524.5,5.92533]
[1725289556054,3.96102,2524.6,2524.5,5.92533]
[1725289557253,3.96102,2524.6,2524.5,3.0]
[1725289558055,3.96073,2524.8,2524.5,3.0]
[1725289558891,3.96056,2524.9,2524.5,3.0]
[1725289559093,3.96008,2525.2,2524.8,3.96066]
[1725289559359,3.96008,2525.2,2524.9,0.396066]
[1725289559659,3.95986,2525.4,2524.9,2.55596223]
[1725289559853,3.95986,2525.4,2524.9,26.31650223]
[1725289560393,3.96039,2525.0,2524.9,19.90516223]
[1725289560599,3.96039,2525.0,2524.9,22.90516223]
[1725289560968,3.96039,2525.0,2524.9,3.10516223]
[1725289561301,3.96039,2525.0,2524.9,0.10516223]
[1725289561612,3.96055,2524.9,2524.7,3.0]
[1725289561903,3.96055,2524.9,2524.7,4.27684]
[1725289562095,3.96055,2524.9,2524.6,9.7684]
[1725289562096,3.96055,2524.9,2524.6,7.31]
[1725289562301,3.9607,2524.8,2524.6,7.31]
[1725289562513,3.9607,2524.8,2524.4,22.8]
[1725289562807,3.9607,2524.8,2524.5,7.01493556]
[1725289563223,7.92149,2524.8,2524.5,7.01493556]
[1725289563424,3.9607,2524.8,2524.5,3.0]
[1725289563718,3.96097,2524.7,2524.5,3.0]
[1725289565114,2.4635,2525.2,2524.5,3.0]
[1725289565115,3.96016,2525.2,2524.7,3.96086]
[1725289565322,3.95938,2525.7,2524.7,3.96086]
[1725289565323,3.95992,2525.4,2524.8,0.70292699]
[1725289565525,3.95961,2525.5,2525.0,2.4316]
[1725289565689,3.95979,2525.4,2525.1,0.71840716]
[1725289565890,3.95961,2525.5,2525.1,4.67863716]
[1725289566093,3.95933,2525.7,2525.2,0.71102372]
[1725289566094,3.95946,2525.6,2525.2,0.71102372]
[1725289566296,3.95933,2525.7,2525.2,0.7902154]
[1725289566633,3.95954,2525.6,2525.2,0.7902154]
[1725289566850,3.95933,2525.7,2525.3,2.59814849]
[1725289567055,3.95907,2525.9,2525.3,2.59814849]
[1725289567256,7.9182,2525.9,2525.3,6.55798849]
[1725289567391,3.95907,2525.9,2525.3,6.55798849]
[1725289567591,3.95907,2525.9,2525.4,1.42290022]
[1725289568634,3.95923,2525.8,2525.4,1.42290022]
[1725289569039,3.95935,2525.7,2525.4,1.42290022]
[1725289569200,3.9597,2525.5,2525.2,22.8]
[1725289569402,3.9594,2525.7,2525.2,22.8]
[1725289569403,7.91885,2525.7,2525.2,22.8]
[1725289569601,7.91885,2525.7,2525.2,26.450188]
[1725289569813,3.9594,2525.7,2525.2,26.450188]
[1725289570028,6.55795563,2526.0,2525.2,22.8]
[1725289570333,3.95992,2525.3,2525.2,19.8]
[1725289570553,3.96023,2525.1,2524.9,0.3974]
[1725289570914,3.96008,2525.2,2524.9,0.3974]
[1725289571664,3.95978,2525.4,2524.9,4.35786]
[1725289571844,3.95973,2525.5,2525.1,2.3073]
[1725289572010,3.95973,2525.5,2525.1,6.26753]
[1725289572548,3.95954,2525.6,2525.1,6.34664532]
[1725289572754,3.95961,2525.5,2525.1,2.3073]
[1725289573125,3.95945,2525.6,2525.1,6.26752]
[1725289573335,3.95938,2525.7,2525.1,7.45363242]
[1725289573642,3.9591,2525.9,2525.4,3.95963]
[1725289574012,3.95879,2526.1,2525.6,2.3073]
[1725289574013,3.95886,2526.0,2525.6,2.3073]
[1725289574216,4.23985563,2526.6,2525.7,0.07917886]
[1725289574217,3.95862,2526.2,2525.7,0.07917886]
[1725289574443,3.95862,2526.2,2525.7,4.03843886]
[1725289574761,3.95862,2526.2,2525.8,0.18370175]
[1725289575052,3.95862,2526.2,2525.8,0.10452728]
[1725289575254,3.95882,2526.0,2525.8,0.10452728]
[1725289575409,3.95907,2525.9,2525.4,26.06694]
[1725289575758,3.95907,2525.9,2525.4,30.02662]
[1725289575924,7.9178,2526.0,2525.5,3.002662]
[1725289576311,3.95898,2525.9,2525.5,3.002662]
[1725289577259,3.95881,2526.1,2525.5,6.962192]
[1725289577438,3.95881,2526.1,2525.6,1.85262244]
[1725289577639,3.95887,2526.0,2525.6,1.85262244]
[1725289578639,3.95864,2526.2,2525.7,4.03845925]
[1725289578807,3.95869,2526.1,2525.7,0.78973392]
[1725289579947,7.91748,2526.1,2525.7,0.78973392]
[1725289580147,3.95907,2525.9,2525.6,19.8]
[1725289580723,3.95883,2526.0,2525.6,19.8]
[1725289580922,3.95883,2526.0,2525.6,22.80266]
[1725289582860,3.95877,2526.1,2525.7,3.95928]
[1725289583066,3.95877,2526.1,2525.7,4.03846144]
[1725289583488,3.9584,2526.3,2525.8,2.4052]
[1725289583694,3.95771,2526.8,2526.3,3.9583]
[1725289583906,3.95758,2526.8,2526.3,19.87915624]
[1725289584054,3.95758,2526.8,2526.3,23.83742624]
[1725289584258,3.95758,2526.8,2526.3,27.8523618]
[1725289584780,3.9578,2526.7,2526.3,23.81493556]
[1725289584982,3.9578,2526.7,2526.3,19.8]
[1725289585170,3.95758,2526.8,2526.3,23.75834]
[1725289585690,7.91525,2526.8,2526.3,23.75834]
[1725289585897,3.95758,2526.8,2526.3,27.50153]
[1725289586608,3.95758,2526.8,2526.4,3.95818]
[1725289586904,3.95758,2526.8,2526.4,4.03733627]
[1725289587279,3.95743,2526.9,2526.3,27.50143]
[1725289587477,3.95735,2527.0,2526.4,5.86000836]
[1725289587793,7.71635513,2527.6,2526.4,5.86000836]
[1725289587794,3.95749,2526.9,2526.4,5.86000836]
[1725289587998,3.95749,2526.9,2526.5,4.97120084]
[1725289588703,7.91503,2526.9,2526.5,4.97120084]
[1725289588906,3.95749,2526.9,2526.5,4.97120084]
[1725289589057,3.95757,2526.8,2526.5,4.97120084]
[1725289589287,7.91503,2526.9,2526.6,1.08311392]
[1725289589730,3.95749,2526.9,2526.7,0.10308322]
[1725289590296,3.95749,2526.9,2526.7,0.71882302]
[1725289590757,3.5291452,2527.5,2526.7,4.95867865]
[1725289590758,2.3123,2527.5,2526.7,4.95867865]
[1725289591010,3.95521,2528.4,2527.2,10.45552563]
[1725289591011,3.95616,2527.8,2527.2,10.45552563]
[1725289591216,3.95612,2527.8,2527.2,11.89672419]
[1725289591418,3.95609,2527.8,2527.3,4.05849023]
[1725289591636,7.91221,2527.8,2527.3,4.05849023]
[1725289591841,3.95616,2527.7,2527.3,0.10172023]
[1725289591992,3.95609,2527.8,2527.3,4.10113564]
[1725289592194,3.9551,2528.4,2527.6,4.23985563]
[1725289592396,3.9551,2528.4,2527.7,26.75608]
[1725289592589,3.95539,2528.2,2527.7,26.75608]
[1725289592898,7.91086,2528.2,2527.8,2.43923567]
[1725289593146,10.66222733,2528.6,2527.8,0.10132563]
[1725289593436,3.95546,2528.2,2527.6,3.95617]
[1725289593608,3.95546,2528.2,2527.9,0.10073634]
[1725289593931,3.95524,2528.3,2527.8,3.95599]
[1725289594136,3.95524,2528.3,2527.7,1.121497]
[1725289594340,3.95524,2528.3,2527.9,0.10073634]
[1725289594629,3.95524,2528.3,2528.0,0.09954873]
[1725289594845,3.95524,2528.3,2527.8,1.70647389]
[1725289595149,3.9554,2528.2,2528.1,0.09952822]
[1725289595737,3.9554,2528.2,2527.8,4.62736726]
[1725289595948,3.9554,2528.2,2528.1,0.09952822]
[1725289596241,3.95578,2528.0,2527.7,4.121497]
[1725289596397,3.95578,2528.0,2527.7,4.20061153]
[1725289596739,3.95578,2528.0,2527.8,0.84404672]
[1725289597289,3.9555,2528.2,2527.9,6.54835563]
[1725289597989,3.95523,2528.3,2527.9,6.54835563]
[1725289598198,3.95523,2528.3,2528.0,0.74715168]
[1725289598884,0.1229917,2528.6,2528.0,0.74715168]
[1725289598885,3.95541,2528.2,2528.0,0.74715168]
[1725289599094,3.95541,2528.2,2527.9,2.3085]
[1725289599301,3.95541,2528.2,2527.9,2.38760722]
[1725289599795,4.0778417,2528.6,2527.9,24.11896285]
[1725289599956,0.1229917,2528.6,2528.5,6.26341]
[1725289600375,0.1229917,2528.6,2528.5,10.8473987]
[1725289600952,0.1229917,2528.6,2528.5,13.76832]
[1725289601172,0.1229917,2528.6,2528.5,7.30931756]
[1725289602051,0.1229917,2528.6,2528.5,5.38758733]
[1725289602365,0.1229917,2528.6,2528.5,9.34249733]
[1725289603481,0.1229917,2528.6,2528.5,9.81341]
[1725289603651,0.1229917,2528.6,2528.5,13.76832]
[1725289604292,0.1229917,2528.6,2528.5,9.81341]
[1725289604462,0.1229917,2528.6,2528.5,19.72405256]
[1725289604668,0.1229917,2528.6,2528.5,19.82220727]
[1725289605077,0.1229917,2528.6,2528.5,16.26469727]
[1725289605491,0.1229917,2528.6,2528.5,32.10978727]
[1725289605695,0.1229917,2528.6,2528.5,31.71238727]
[1725289606046,0.1229917,2528.6,2528.5,28.15487727]
[1725289606295,0.1229917,2528.6,2528.5,32.10978727]
[1725289608397,0.1229917,2528.6,2528.5,36.06469727]
[1725289610629,0.1229917,2528.6,2528.5,22.29637727]
[1725289612291,0.1229917,2528.6,2528.5,25.29637727]
[1725289612992,4.0777417,2528.6,2528.5,25.29637727]
[1725289613955,8.0324917,2528.6,2528.5,5.49637727]
[1725289614155,4.0777417,2528.6,2528.5,3.49555471]
[1725289614583,4.0777417,2528.6,2528.5,0.09815471]
[1725289614584,10.2928917,2528.6,2528.5,0.09815471]
[1725289614803,15.67348287,2528.6,2527.9,19.8]
[1725289614959,3.95615,2527.8,2527.6,19.8]
[1725289615153,3.95615,2527.8,2527.6,21.28732]
[1725289615355,3.95581,2528.0,2527.6,21.28732]
[1725289615356,7.91165,2528.0,2527.6,21.28732]
[1725289615605,3.95495,2528.5,2527.6,25.24356]
[1725289615762,3.95551,2528.2,2527.7,26.529826]
[1725289616265,3.95522,2528.3,2527.8,4.03507791]
[1725289616459,3.95522,2528.3,2527.8,5.41910027]
[1725289617277,3.95501,2528.5,2527.9,3.0]
[1725289617478,2.3833917,2528.6,2528.0,2.47460029]
[1725289617479,3.95511,2528.4,2528.0,2.47460029]
[1725289617672,0.1229917,2528.6,2528.0,5.92091332]
[1725289617962,3.95524,2528.3,2528.0,3.44631303]
[1725289618165,7.91056,2528.3,2528.1,3.3446313]
[1725289618487,7.91055,2528.3,2528.1,0.3446313]
[1725289618697,7.91006,2528.5,2528.1,0.3446313]
[1725289618866,7.91006,2528.5,2528.1,0.4237298]
[1725289619069,3.95501,2528.5,2528.1,0.4237298]
[1725289619378,3.955,2528.5,2528.2,0.48257028]
[1725289619591,3.955,2528.5,2528.2,20.28257028]
[1725289619756,3.955,2528.5,2528.3,0.08569813]
[1725289620204,3.955,2528.5,2528.2,20.28257028]
[1725289620411,3.95499,2528.5,2528.2,20.28257028]
[1725289620561,3.95499,2528.5,2528.3,0.08569813]
[1725289620763,3.95507,2528.4,2528.3,0.08569813]
[1725289620981,3.95499,2528.5,2528.2,20.28257028]
[1725289621310,3.95499,2528.5,2528.3,2.14841829]
[1725289621462,4.0777517,2528.6,2528.3,2.14841829]
[1725289621658,0.1229917,2528.6,2528.4,19.8]
[1725289621903,0.1229917,2528.6,2528.5,2.36749868]
[1725289622125,0.1229917,2528.6,2528.5,9.32240868]
[1725289622431,0.1229917,2528.6,2528.5,16.30291868]
[1725289622647,0.1229917,2528.6,2528.5,40.05782868]
[1725289622802,0.1229917,2528.6,2528.5,40.45326176]
[1725289623426,0.1229917,2528.6,2528.5,40.37417166]
[1725289623893,0.1229917,2528.6,2528.5,36.81666166]
[1725289624294,0.1229917,2528.6,2528.5,36.42122858]
[1725289624526,10.3603917,2528.6,2528.5,0.08565712]
[1725289624740,18.55499733,2528.6,2528.5,0.08565712]
[1725289625024,3.9559,2527.9,2527.6,2.0]
[1725289625225,3.9559,2527.9,2527.7,0.2]
[1725289625434,18.43575563,2527.8,2527.7,0.07435354]
[1725289625731,18.43575563,2527.8,2526.0,5.58328474]
[1725289625732,3.9579,2526.6,2526.0,3.95877]
[1725289626033,3.95795,2526.6,2526.2,4.0]
[1725289626183,3.95773,2526.7,2526.3,0.07915576]
[1725289626386,3.95773,2526.7,2526.3,0.55706882]
[1725289626706,3.95793,2526.6,2526.3,0.55706882]
[1725289627081,3.95793,2526.6,2526.3,0.0573354]